{"text_format":"2","workbook":"xlsx","n_sheets":2,"sheets":["brigadista 24 h-diurno","RESUMO"],"not_rendered":{"charts":0,"images":0,"macros":0,"external_links":0,"defined_names":5,"comments":1,"pivot_tables":0},"unopened":[],"bounds":{"document_bytes":16777216,"sheet_cells":100000,"run_cost":"one","rows_first":2000,"rows_last":500,"rows_between":2000,"halvings":0,"cell_chars":16384,"cell_head_chars":4096},"cells_cut":0,"cells_raw":0,"read":"whole","date_system":"1900"}

{"sheet":"brigadista 24 h-diurno","index":0,"n_rows":138,"n_cols":7,"rows_kept":138,"cut":false,"hidden":false,"merged":[[2,0,2,1],[5,0,5,1],[24,0,24,1],[27,1,27,2],[28,1,28,2],[84,1,84,2],[29,1,29,2],[30,1,30,2],[31,1,31,2],[32,1,32,2],[33,1,33,2],[34,0,34,2],[145,0,145,5],[0,0,0,3],[130,0,130,1],[140,1,140,3],[141,0,141,1],[107,2,107,3],[108,2,108,3],[118,0,118,2],[123,0,123,1],[127,2,128,2],[128,0,128,1],[57,0,57,1],[61,1,61,2],[66,0,66,1],[75,1,75,2],[82,0,82,1]]}
["Contratação de empresa especializada para prestação de serviços de bombeiro civil (brigadista) utilizando 1 (um) posto de trabalho de 24 horas, composta por 4 (quatro) pessoas, na escala 12 x 36 horas, de segunda a domingo, diurno.  "]
[]
["Planilha de Proposta de Preço"]
[null,"Processo nº: "]
[null,"Licitação nº                             Pregão Eletrônico nº "]
["Dia                          "]
[]
["A","Data da Apresentação da Proposta"]
["B","Município/UF","Brasília/DF"]
["C","Ano Arcordo, Convenção Coletiva ou Sentença Normativa em Dissídio Coletivo.","SINDBOMBEIRO/DF 2018"]
["D","N° de meses de execução contratual","12 meses"]
[]
[1,"Tipo de Serviço","Bombeiro Particular"]
[2,"Salário normativo da categoria profissional",2728.14]
[3,"Categoria profissional","Bomeiro Civil"]
[4,"Data base da categoria","2018-01-01"]
[null,"Módulo 1: Composição da Remuneração"]
[]
[1,"Composição da Remuneração ","Percentual","Salário individual"]
["A","Salário Base da Categoria"]
["B","Adicional de Periculosidade"]
["C","Adicional noturno "]
["D","Súmula 444 - TST diurno"]
["E","DSR  sobre a Súmula 444 - diurno"]
["Total da Remuneração",null,{"$f":"SUM(C20:C24)","v":0}]
[null,"Módulo 2: Benefícios Mensais e Diários"]
[]
[2,"Benefícios Mensais e Diários",null,"Valor individual (R$)"]
["A","Transporte "]
["B","Auxílio Alimentação "]
["E","Fundo indenização de aposentadoria p/ invalidez ",null,0]
["F","Seguro de vida",null,0]
["G","Plano de Saúde",null,0]
["H","Fundo social odontológico",null,0]
["total de benefícios mensais e diários",null,null,{"$f":"SUM(D29:D34)","v":0}]
[]
[null,"Módulo 3: Insumos Diversos"]
[]
[3,"Insumos Diversos",null,"Valor"]
["A","Uniformes"]
["B","Arma/munição"]
["C","EPIs"]
["D","Outros (Materiais e Equipamentos de Primeiros Socorros)"]
[null,"Total de Insumos Diversos",null,{"$f":"SUM(D40:D43)","v":0}]
[]
[null,"Módulo 4:Encargos Sociais e Trabalhistas"]
[]
[null,"Submódulo 4.1: Encargos Previdenciários  e FGTS"]
["4.1"," Encargos Previdenciários  e FGTS","%","Valor individual (R$)"]
["A","INSS (art. 22,inc. I da Lei 8212/91)",0.2,{"$f":"C50*D25","v":0}]
["B","SESI OU SESC - ART 30 da lei 8.036/90",1.4999999999999999E-2,{"$f":"C51*D25","v":0}]
["C","SENAI OU SENAC - Decreto 2.318/86",0.01,{"$f":"C52*D25","v":0}]
["D","INCRA - Decreto-lei 1.146/70",2E-3,{"$f":"C53*D25","v":0}]
["E","Salário Educação - ART 15 lei 9424/96, Art 2º decreto 3.142/99 e Art 212, $5º cf/888.036/90",2.5000000000000001E-2,{"$f":"C54*D25","v":0}]
["F","FGTS - ART 15 lei 8.030/90 e Art 7ª, $ 3º Cf/88",0.08,{"$f":"C55*D25","v":0}]
["G","SEBRAE",6.0000000000000001E-3,{"$f":"C56*D25","v":0}]
["H","Seguro Acidente de Trabalho (decreto 6042/2007)",1.4999999999999999E-2,{"$f":"C57*D25","v":0}]
["Total",null,{"$f":"SUM(C50:C57)","v":0.35300000000000009},{"$f":"C58*D25","v":0}]
[]
[]
[null,"Submódulo 4.2: 13° Salário e Adicional de Férias"]
["4.2","13° Salário e Adicional de Férias",null,"Valor individual (R$)"]
["A","13° Salário - Manual MPOG",null,{"$f":"C63*D25","v":0}]
["B","Adicional de Férias - Manual MPOG",null,{"$f":"C64*D25","v":0}]
["C","Subtotal",null,{"$f":"C65*D25","v":0}]
["D","Incidência do Submódulo 4.1 sobre o 13° Salário e adicional de Férias",null,{"$f":"C66*D25","v":0}]
["total",null,null,{"$f":"D65+D66","v":0}]
[]
[null,"Submódulo 4.3:Afastamento Maternidade"]
["4.3","Afastamento Maternidade",null,"Valor individual (R$)"]
["A","Afastamento Maternidade ",null,0]
["B","Incidência do submódulo 4.1 sobre afastamento maternidade",null,0]
[null,"total",null,0]
[]
[null,"Submódulo 4.4: Provisão para Rescisão"]
["4.4","Provisão para Rescisão",null,"Valor individual (R$)"]
["A","Aviso prévio Indenizado",null,{"$f":"C77*D25","v":0}]
["B","Incidencia do FGTS sobre aviso prévio indenizado (provisão para rescisão)",null,{"$f":"C78*D25","v":0}]
["C","Multa do FGTS do Aviso prévio indenizado (Manual MPOG)",null,{"$f":"C79*D25","v":0}]
["D","Aviso prévio trabalhado - Manual MPOG",null,{"$f":"C80*D25","v":0}]
["E","Incidencia do submódulo 4.1 sobre o aviso prévio trabalhado",null,{"$f":"C81*D25","v":0}]
["F","Multa FGTS do aviso prévio trabalhado",null,{"$f":"C82*D25","v":0}]
["Total",null,{"$f":"SUM(C77:C82)","v":0},{"$f":"C83*D25","v":0}]
[null,"Submódulo 4.5: Custo de Reposição do Profissional Ausente "]
["4.5","Composição do Custo de Reposição do Profissional Ausente ",null,"Valor individual (R$)"]
["A","Férias",null,{"$f":"C86*D25","v":0}]
["B","Ausencia por doença  ",null,{"$f":"C87*D25","v":0}]
["C","Licença paternidade  ",null,{"$f":"C88*D25","v":0}]
["D","Ausências Legais",null,{"$f":"C89*D25","v":0}]
["E","Ausências por acidente de trabalho",null,{"$f":"C90*D25","v":0}]
["F","Outros",null,{"$f":"C91*D25","v":0}]
[null,"Subtotal",null,{"$f":"C92*D25","v":0}]
["G","Inciencia do submódulo 4.1 sobre o custo de reposição",null,{"$f":"C93*D25","v":0}]
[null,"Total",{"$f":"C92+C93","v":0},{"$f":"D92+D93","v":0}]
[null,"Quadro Resumo - Módulo 4 - Encargos Sociais e Trabalhistas"]
[4," Encargos Sociais e Trabalhistas",null,"Valor individual (R$)"]
["4.1","13° Salário + Adicional de Férias",null,{"$f":"D67","v":0}]
["4.2","Encargos previdenciários e  FGTS",null,{"$f":"D58","v":0}]
["4.3","Afastamento Maternidade",null,{"$f":"D73","v":0}]
["4.4","Custo de Rescisão",null,{"$f":"D83","v":0}]
["4.5","Custo de Reposição do profissional ausente",null,{"$f":"D94","v":0}]
["4.6","Outros",null,0]
[null,"total",null,{"$f":"SUM(D97:D102)","v":0}]
[null,"Módulo 5: Custos indiretos, tributos e lucros"]
[]
[5,"Custos indiretos, tributos e lucros","Descrição","Valor individual (R$)"]
["A","Custos indiretos, tributos e lucros ",null,{"$f":"D124*C107","v":0}]
["B","Tributos"]
["C","B.1 Tributos Federais"]
[null,"B.1.1. PIS ",null,{"$f":"((D124+D107+D115)*C110)/(1-C110)","v":0}]
[null,"B.1.2. COFINS",null,{"$f":"((D124+D107+D115)*C111)/(1-C111)","v":0}]
[null,"B.2. Tributos Estaduais (ISS)",null,{"$f":"((D124+D107+D115)*C112)/(1-C112)","v":0}]
[null,"B.3. Tributos Municipais",null,{"$f":"C113*E25","v":0}]
[null,"B.4. Outros Tributos",null,{"$f":"C114*E25","v":0}]
[null,"Lucro",null,{"$f":"(D124+D107)*C115","v":0}]
[null,"total",null,{"$f":"SUM(D107:D115)","v":0}]
[]
[null,"Anexo III - B - Quadro-resumo do custo por empregado"]
["Mão-de-obra vinculada à execução contratual (valor por empregado)",null,null,"Valor individual (R$)"]
["A","Módulo 1 - Composição da Remuneração",null,{"$f":"D25","v":0}]
["B","Módulo 2 - Benefícios Mensais e Diários",null,{"$f":"D35","v":0}]
["C","Módulo 3 - Insumos Diversos (uniformes, materiais, equipamentos e outros)",null,{"$f":"D44","v":0}]
["D","Modulo 4 - Encargos Sociais e Trabalhistas",null,{"$f":"D103","v":0}]
["Subtotal (A+B+C+D)",null,null,{"$f":"SUM(D120:D123)","v":0}]
["E","Módulo 5 - Custos Indiretos, tributos e lucros",null,{"$f":"D116","v":0}]
[null,"Valor total por empregado",null,{"$f":"(D124+D125)","v":0}]
[null,"Anexo III - C - Quadro-resumo - Valor Mensal dos Serviços"]
[null,"Tipo de Serviço","Valor Proposto por empregado (B)","Qtde de empregados por posto diurno","Valor proposto por posto","Qtde de postos","Valor total dos serviços"]
["(A)",null,null,"(C )","(D)=(BXC)","(E)","(F)=(DxE)"]
["I","Serviço 1",{"$f":"D126","v":0},4,{"$f":"C130*D130","v":0},1,{"$f":"E130*F130","v":0}]
["Valor Mensal do serviço ",{"$nulls":5},{"$f":"SUM(G130)","v":0}]
[null,"anexo III - D - Quadro Demonstrativo - Valor Global da Proposta"]
[]
[null,"Valor Global da Proposta"]
[null,"Descrição","Valor"]
["A","Valor proposto por unidade de medida (01 pessoa)",{"$f":"C130","v":0}]
["B","Valor Mensal do serviço (01 posto, 02 pessoas)",{"$f":"E130","v":0}]
["C","Valor Global anual da Proposta (valor mensal do serviço x n° meses do contrato) 1 posto, 04 pessoas",{"$f":"12*E130","v":0}]

{"sheet":"RESUMO","index":1,"n_rows":11,"n_cols":10,"rows_kept":11,"cut":false,"hidden":false,"merged":[[0,0,0,10],[1,0,1,10],[2,1,2,2],[2,5,2,6],[2,7,2,8],[2,9,2,10],[6,0,6,10],[5,0,5,10],[3,1,3,2],[3,5,3,6],[3,7,3,8],[3,9,3,10],[4,0,4,2],[4,5,4,6],[4,7,4,8],[4,9,4,10],[10,0,10,10],[8,1,8,8],[8,9,8,10],[7,1,7,8],[7,9,7,10],[9,1,9,8],[9,9,9,10]]}
["PLANILHA RESUMO DE VALORES APÓS APLICABILIDADE DA LEI 13.467/2017 - REFORMA TRABALHISTA\n Nota Técnica nº 1417/2018/CGIMA-DIV1/CGIMA/DI/SFC do Ministério da Transparência e Controladoria-Geral da União"]
["QUADRO-RESUMO DO ORÇAMENTO"]
["Item","Tipo de Serviço",null,"Qtde. de Postos","Qtde. de Vigilantes","Valor Unitário do Posto",null,"Valor Total Anual de 1 Posto",null,"Valor Total Anual do serviço"]
["II","Vigilante armado - diurno",null,1,4,{"$f":"'brigadista 24 h-diurno'!E130","v":0},null,{"$f":"(F4*12)","v":0},null,{"$f":"H4*D4","v":0}]
["VALOR MENSAL DOS SERVIÇOS",{"$nulls":6},{"$f":"SUM(H4:I4)","v":0}]
[]
["VALOR GLOBAL DA PROPOSTA"]
["A","Valor por unidade medida - Bragadista Civil - diurno",{"$nulls":7},{"$f":"F4","v":0}]
["F","Valor Mensal dos Serviços",{"$nulls":7},{"$f":"J8","v":0}]
["G","Valor Global Anual da Proposta (valor mensal do serviço x 12 meses)",{"$nulls":7},{"$f":"J9*12","v":0}]
["(Novecentos e setenta e sete mil, cento e dezoito reais e sete centavos)"]